{"text_format":"1","workbook":"xlsx","n_sheets":5,"sheets":["Aviso de Privacidad","Asegurado","BeneficiariosVIDA","Aviso","Imp"],"not_rendered":{"charts":0,"images":100,"macros":1,"external_links":0,"defined_names":2,"comments":0,"pivot_tables":0},"unopened":[],"bounds":{"document_bytes":16777216,"sheet_cells":100000,"rows_first":2000,"rows_last":500,"rows_between":2000,"halvings":0,"cell_chars":16384,"cell_head_chars":4096},"cells_cut":0,"cells_raw":0,"read":"whole","date_system":"1900"}

{"sheet":"Aviso de Privacidad","index":0,"n_rows":3,"n_cols":13,"rows_kept":3,"cut":false,"hidden":false,"merged":[[2,2,2,11],[0,1,0,11]]}
[null,"AVISO DE PRIVACIDAD DE METLIFE",null,null,null,null,null,null,null,null,null,null,"S"]
[]
[null,null,"  "]

{"sheet":"Asegurado","index":1,"n_rows":0,"n_cols":0,"rows_kept":0,"cut":false,"hidden":true,"merged":[]}

{"sheet":"BeneficiariosVIDA","index":2,"n_rows":13,"n_cols":31,"rows_kept":13,"cut":false,"hidden":true,"merged":[[6,15,6,16],[8,7,8,9],[9,7,9,9],[10,7,10,9],[9,12,9,15],[10,12,10,15],[11,12,11,15],[12,12,12,15],[11,7,11,9],[12,7,12,9],[8,12,8,15]]}
[]
[null,null,null,null,null,null,null,null,null,null,null,11,null,11]
[null,null,null,null,null,null,null,null,null,null,null,0]
[]
[]
[]
[null,null,null,null,null,null,null,null,null,null,null,null,null,null,null,"Porcentaje Total",null,{"$f":"SUM(R10:R13)","v":1}]
[]
[null,null,null,null,null,null,"#","Nombre",null,null,"Fecha de nacimiento","Parentesco","Domicilio",null,null,null,"Tel","%",null,"RIOS","CAMACHO","PATY","RETAMA",18,null,"NATIVITAS","NATIVITAS","CALIMAYA","MÉXICO",52230,"MEXICO"]
[null,null,null,null,null,null,1,{"$f":"CONCATENATE(T10,\" \",U10,\" \",V10)","v":"PAREDES PEREZ  AMAYA MELISA"},null,null,"06/06/2007","Hijo (a)",{"$f":"IF(L10<>\"\",(CONCATENATE(W10,\", \",IF(X10<>\"\",CONCATENATE(\"NO.\",X10),\"\"),\", \",IF(Y10<>\"\",CONCATENATE(\"INT.\",Y10),\"\"),\", \", IF(Z10<>\"\",CONCATENATE(\"COL. \",Z10),\"\"),\", \",AA10,\", \",AB10,\", \",AC10,IF(AD10<>\"\",CONCATENATE(\" C.P. \",AD10),\" \"),\", \",AE10)),\"\")","v":"KKK, NO.22, , COL. KKK, QUERETARO, FELIX OSORES, QUERÉTARO C.P. 76148, MEXICO"},null,null,null,"6655443322",1,null,"PAREDES","PEREZ ","AMAYA MELISA","KKK",22,null,"KKK","QUERETARO","FELIX OSORES","QUERÉTARO",76148,"MEXICO"]
[null,null,null,null,null,null,2,{"$f":"CONCATENATE(T11,\" \",U11,\" \",V11)","v":"  "},null,null,null,null,{"$f":"IF(L11<>\"\",(CONCATENATE(W11,\", \",IF(X11<>\"\",CONCATENATE(\"NO.\",X11),\"\"),\", \",IF(Y11<>\"\",CONCATENATE(\"INT.\",Y11),\"\"),\", \", IF(Z11<>\"\",CONCATENATE(\"COL. \",Z11),\"\"),\", \",AA11,\", \",AB11,\", \",AC11,IF(AD11<>\"\",CONCATENATE(\" C.P. \",AD11),\" \"),\", \",AE11)),\"\")","v":""}]
[null,null,null,null,null,null,3,{"$f":"CONCATENATE(T12,\" \",U12,\" \",V12)","v":"  "},null,null,null,null,{"$f":"IF(L12<>\"\",(CONCATENATE(W12,\", \",IF(X12<>\"\",CONCATENATE(\"NO.\",X12),\"\"),\", \",IF(Y12<>\"\",CONCATENATE(\"INT.\",Y12),\"\"),\", \", IF(Z12<>\"\",CONCATENATE(\"COL. \",Z12),\"\"),\", \",AA12,\", \",AB12,\", \",AC12,IF(AD12<>\"\",CONCATENATE(\" C.P. \",AD12),\" \"),\", \",AE12)),\"\")","v":""}]
[null,null,null,null,null,null,4,{"$f":"CONCATENATE(T13,\" \",U13,\" \",V13)","v":"  "},null,null,null,null,{"$f":"IF(L13<>\"\",(CONCATENATE(W13,\", \",IF(X13<>\"\",CONCATENATE(\"NO.\",X13),\"\"),\", \",IF(Y13<>\"\",CONCATENATE(\"INT.\",Y13),\"\"),\", \", IF(Z13<>\"\",CONCATENATE(\"COL. \",Z13),\"\"),\", \",AA13,\", \",AB13,\", \",AC13,IF(AD13<>\"\",CONCATENATE(\" C.P. \",AD13),\" \"),\", \",AE13)),\"\")","v":""}]

{"sheet":"Aviso","index":3,"n_rows":3,"n_cols":3,"rows_kept":3,"cut":false,"hidden":true,"merged":[[2,2,2,11]]}
[]
[null,"NS"]
[null,"Yo, ","MARIBEL PEREZ PERRUSQUIA"]

{"sheet":"Imp","index":4,"n_rows":226,"n_cols":30,"rows_kept":226,"cut":false,"hidden":true,"merged":[[57,29,57,32],[125,29,125,32],[175,29,175,32],[225,29,225,32],[54,2,55,29],[60,0,60,32],[77,1,77,7],[78,1,78,7],[79,1,79,14],[80,1,80,20],[82,1,82,20],[83,1,83,20],[84,1,84,20],[63,1,63,31],[56,1,56,31],[51,1,52,6],[44,1,49,12],[44,14,50,30],[41,26,41,28],[41,9,41,11],[41,12,41,15],[41,29,41,30],[41,2,41,8],[41,16,41,25],[51,14,53,30],[35,16,35,25],[35,29,35,30],[35,26,35,28],[36,12,36,15],[40,2,40,8],[40,16,40,25],[40,29,40,30],[40,26,40,28],[40,12,40,15],[40,9,40,11],[39,16,39,25],[38,29,38,30],[39,29,39,30],[38,26,38,28],[39,26,39,28],[38,16,38,25],[37,16,37,25],[15,1,15,5],[37,9,37,11],[37,12,37,15],[15,6,15,20],[15,22,15,30],[37,26,37,28],[37,29,37,30],[22,0,22,31],[34,1,34,30],[35,9,35,11],[19,1,19,30],[36,9,36,11],[18,1,18,6],[18,7,18,30],[35,12,35,15],[39,1,39,8],[38,12,38,15],[36,1,36,8],[35,1,35,8],[37,1,37,8],[38,1,38,8],[39,9,39,11],[39,12,39,15],[38,9,38,11],[17,1,17,10],[12,16,12,20],[11,16,11,21],[16,1,16,10],[13,22,13,30],[14,16,14,21],[11,22,11,30],[14,1,14,5],[11,1,11,5],[11,6,11,14],[12,1,12,5],[12,6,12,14],[14,6,14,14],[14,22,14,30],[0,0,0,32],[4,0,4,5],[4,6,4,16],[12,22,12,30],[36,16,36,25],[36,26,36,28],[36,29,36,30],[3,1,3,21],[5,25,5,30],[13,16,13,21],[13,1,13,5],[13,6,13,14],[10,0,10,31],[8,0,9,31],[21,0,21,31],[7,0,7,32]]}
[]
[]
[]
[null,"Consentimiento-Certificado Individual del \nSeguro de Vida Institucional"]
["Fecha de elaboración:",null,null,null,null,null,{"$f":"NOW()","v":"2023-02-14T15:02:56.680"},null,null,null,null,null,null,null,null,null,null,null,"Póliza:",null,null,null,null,null,null,{"$f":"IF(E7=\"ISSSTE\",\"PB4001 Y PB4002\",IF(E7=\"FOVISSSTE\",\"PB4005 Y PB4006\",\"\"))","v":"PB4001 Y PB4002"}]
[]
["Contratante:",null,null,null,"ISSSTE"]
[]
["La colectividad será descrita en la póliza o pólizas de referencia."]
[]
["Datos del Asegurado"]
[null,"Apellido paterno:",null,null,null,null,"PEREZ",null,null,null,null,null,null,null,null,null,"Fecha de nacimiento:",null,null,null,null,null,"08/06/1985"]
[null,"Apellido materno:",null,null,null,null,"PERRUSQUIA",null,null,null,null,null,null,null,null,null,"Edad:",null,null,null,null,null,372]
[null,"Nombre(s):",null,null,null,null,"MARIBEL",null,null,null,null,null,null,null,null,null,"Número de empleado:",null,null,null,null,null,"K"]
[null,"Correo electrónico:",null,null,null,null,"mperrusquia@gmail.com",null,null,null,null,null,null,null,null,null,"Área de adscripción:",null,null,null,null,null,"KKK"]
[null,"Unidad Administrativa:",null,null,null,null,"22\t"]
[null,"Registro Federal del Contribuyentes:",null,null,null,null,null,null,null,null,null,"PEPM8506086I8"]
[null,"Clave Única de Registro de Población:",null,null,null,null,null,null,null,null,null,"PEPM850608MQTRRR02"]
[null,"Domicilio del Asegurado:",null,null,null,null,null,"KKK NO.22, , COL. KKK"]
[null,"QUERETARO, FELIX OSORES, QUERÉTARO, 76148, MEXICO"]
[]
["Suma Asegurada (es la descrita en la póliza correspondiente)"]
[]
[""]
[]
[]
[]
[]
[]
[]
[]
[]
[]
[]
[null,"Beneficiarios"]
[null,"Nombre completo",null,null,null,null,null,null,null,"Fecha de nacimiento",null,null,"Parentesco",null,null,null,"Domicilio",null,null,null,null,null,null,null,null,null,"Teléfono",null,null,"Porcentaje"]
[null,{"$f":"IF(BeneficiariosVIDA!$T$10<>\"\",CONCATENATE(BeneficiariosVIDA!$T$10,\" \",BeneficiariosVIDA!$U$10,\" \",BeneficiariosVIDA!$V$10),\"\")","v":"PAREDES PEREZ  AMAYA MELISA"},null,null,null,null,null,null,null,{"$f":"IF(BeneficiariosVIDA!$K$10<>\"\",BeneficiariosVIDA!$K$10,\"\")","v":"06/06/2007"},null,null,{"$f":"IF(BeneficiariosVIDA!$L$10<>\"\",BeneficiariosVIDA!$L$10,\"\")","v":"Hijo (a)"},null,null,null,{"$f":"IF(BeneficiariosVIDA!$M$10<>\"\",BeneficiariosVIDA!$M$10,\"\")","v":"KKK, NO.22, , COL. KKK, QUERETARO, FELIX OSORES, QUERÉTARO C.P. 76148, MEXICO"},null,null,null,null,null,null,null,null,null,{"$f":"IF(BeneficiariosVIDA!$Q$10<>\"\",BeneficiariosVIDA!$Q$10,\"\")","v":"6655443322"},null,null,{"$f":"IF(BeneficiariosVIDA!$R$10<>\"\",BeneficiariosVIDA!$R$10,\"\")","v":1}]
[null,{"$f":"IF(BeneficiariosVIDA!$T$11<>\"\",CONCATENATE(BeneficiariosVIDA!$T$11,\" \",BeneficiariosVIDA!$U$11,\" \",BeneficiariosVIDA!$V$11),\"\")","v":""},null,null,null,null,null,null,null,{"$f":"IF(BeneficiariosVIDA!$K$11<>\"\",BeneficiariosVIDA!$K$11,\"\")","v":""},null,null,{"$f":"IF(BeneficiariosVIDA!$L$11<>\"\",BeneficiariosVIDA!$L$11,\"\")","v":""},null,null,null,{"$f":"IF(BeneficiariosVIDA!$M$11<>\"\",BeneficiariosVIDA!$M$11,\"\")","v":""},null,null,null,null,null,null,null,null,null,{"$f":"IF(BeneficiariosVIDA!$Q$11<>\"\",BeneficiariosVIDA!$Q$11,\"\")","v":""},null,null,{"$f":"IF(BeneficiariosVIDA!$R$11<>\"\",BeneficiariosVIDA!$R$11,\"\")","v":""}]
[null,{"$f":"IF(BeneficiariosVIDA!$T$12<>\"\",CONCATENATE(BeneficiariosVIDA!$T$12,\" \",BeneficiariosVIDA!$U$12,\" \",BeneficiariosVIDA!$V$12),\"\")","v":""},null,null,null,null,null,null,null,{"$f":"IF(BeneficiariosVIDA!$K$12<>\"\",BeneficiariosVIDA!$K$12,\"\")","v":""},null,null,{"$f":"IF(BeneficiariosVIDA!$L$12<>\"\",BeneficiariosVIDA!$L$12,\"\")","v":""},null,null,null,{"$f":"IF(BeneficiariosVIDA!$M$12<>\"\",BeneficiariosVIDA!$M$12,\"\")","v":""},null,null,null,null,null,null,null,null,null,{"$f":"IF(BeneficiariosVIDA!$Q$12<>\"\",BeneficiariosVIDA!$Q$12,\"\")","v":""},null,null,{"$f":"IF(BeneficiariosVIDA!$R$12<>\"\",BeneficiariosVIDA!$R$12,\"\")","v":""}]
[null,{"$f":"IF(BeneficiariosVIDA!$T$13<>\"\",CONCATENATE(BeneficiariosVIDA!$T$13,\" \",BeneficiariosVIDA!$U$13,\" \",BeneficiariosVIDA!$V$13),\"\")","v":""},null,null,null,null,null,null,null,{"$f":"IF(BeneficiariosVIDA!$K$13<>\"\",BeneficiariosVIDA!$K$13,\"\")","v":""},null,null,{"$f":"IF(BeneficiariosVIDA!$L$13<>\"\",BeneficiariosVIDA!$L$13,\"\")","v":""},null,null,null,{"$f":"IF(BeneficiariosVIDA!$M$13<>\"\",BeneficiariosVIDA!$M$13,\"\")","v":""},null,null,null,null,null,null,null,null,null,{"$f":"IF(BeneficiariosVIDA!$Q$13<>\"\",BeneficiariosVIDA!$Q$13,\"\")","v":""},null,null,{"$f":"IF(BeneficiariosVIDA!$R$13<>\"\",BeneficiariosVIDA!$R$13,\"\")","v":""}]
[null,{"$f":"IF(BeneficiariosVIDA!$T$15<>\"\",BeneficiariosVIDA!$G$15,\"\")","v":""},{"$f":"IF(BeneficiariosVIDA!$T$15<>\"\",CONCATENATE(BeneficiariosVIDA!$T$15,\" \",BeneficiariosVIDA!$U$15,\" \",BeneficiariosVIDA!$V$15),\"\")","v":""},null,null,null,null,null,null,{"$f":"IF(BeneficiariosVIDA!$K$15<>\"\",BeneficiariosVIDA!$K$15,\"\")","v":""},null,null,{"$f":"IF(BeneficiariosVIDA!$L$15<>\"\",BeneficiariosVIDA!$L$15,\"\")","v":""},null,null,null,{"$f":"IF(BeneficiariosVIDA!$M$15<>\"\",BeneficiariosVIDA!$M$15,\"\")","v":""},null,null,null,null,null,null,null,null,null,{"$f":"IF(BeneficiariosVIDA!$Q$15<>\"\",BeneficiariosVIDA!$Q$15,\"\")","v":""},null,null,{"$f":"IF(BeneficiariosVIDA!$R$15<>\"\",BeneficiariosVIDA!$R$15,\"\")","v":""}]
[null,{"$f":"IF(BeneficiariosVIDA!$T$16<>\"\",BeneficiariosVIDA!$G$16,\"\")","v":""},{"$f":"IF(BeneficiariosVIDA!$T$16<>\"\",CONCATENATE(BeneficiariosVIDA!$T$16,\" \",BeneficiariosVIDA!$U$16,\" \",BeneficiariosVIDA!$V$16),\"\")","v":""},null,null,null,null,null,null,{"$f":"IF(BeneficiariosVIDA!$K$16<>\"\",BeneficiariosVIDA!$K$16,\"\")","v":""},null,null,{"$f":"IF(BeneficiariosVIDA!$L$16<>\"\",BeneficiariosVIDA!$L$16,\"\")","v":""},null,null,null,{"$f":"IF(BeneficiariosVIDA!$M$16<>\"\",BeneficiariosVIDA!$M$16,\"\")","v":""},null,null,null,null,null,null,null,null,null,{"$f":"IF(BeneficiariosVIDA!$Q$16<>\"\",BeneficiariosVIDA!$Q$16,\"\")","v":""},null,null,{"$f":"IF(BeneficiariosVIDA!$R$16<>\"\",BeneficiariosVIDA!$R$16,\"\")","v":""}]
[]
[]
[null,"Sello de recepción de Recursos Humanos"]
[]
[]
[]
[]
[]
[]
[null,null,null,null,null,null,null,null,null,null,null,null,null,null,"Firma del Asegurado (Favor de no salirse del recuadro)\nSi el Asegurado no sabe o no puede firmar, deberá poner su huella digital de acuerdo con las notas de importancia descritas al reverso. "]
[]
[null,"MetLife México S.A de C.V."]
[null,null,"MetLife México S.A de C.V., Avenida Insurgentes Sur número 1457, pisos 7 al 14, \nColonia Insurgentes Mixcoac, Alcaldía Benito Juárez, Ciudad de México, Código postal 03920. Teléfono 555328 7000, Lada sin costo 800 00 METLIFE (638 5433) www.metlife.com.mx"]
[]
[]
["GV-2-137 VER. 7",null,null,null,null,null,null,null,null,null,null,null,null,null,null,null,null,null,null,null,null,null,null,null,null,null,null,null,null,"1 de 4"]
[]
[]
[]
[]
[]
[null,"Aviso de privacidad de MetLife México S.A de C.V."]
[]
[]
[]
[]
[]
[]
[]
[]
[]
[]
[]
[]
[]
[]
[]
[]
[]
[]
[]
[]
[]
[]
[]
[]
[]
[]
[]
[]
[]
[]
[]
[]
[]
[]
[]
[]
[]
[]
[]
[]
[]
[]
[]
[]
[]
[]
[]
[]
[]
[]
[]
[]
[]
[]
[]
[]
[]
[]
[]
[]
[]
[null,null,null,null,null,null,null,null,null,null,null,null,null,null,null,null,null,null,null,null,null,null,null,null,null,null,null,null,null,"2 de 4"]
[]
[]
[]
[null,"Notas de importancia"]
[]
[]
[]
[]
[]
[]
[]
[]
[]
[]
[]
[]
[]
[]
[]
[]
[]
[]
[]
[]
[]
[]
[]
[]
[]
[]
[]
[]
[]
[]
[]
[]
[]
[]
[]
[]
[]
[]
[]
[]
[]
[]
[]
[]
[]
[null,null,null,null,null,null,null,null,null,null,null,null,null,null,null,null,null,null,null,null,null,null,null,null,null,null,null,null,null,"3 de 4"]
[]
[]
[]
[]
[]
[]
[]
[]
[]
[]
[]
[]
[]
[]
[]
[]
[]
[]
[]
[]
[]
[]
[]
[]
[]
[]
[]
[]
[]
[]
[]
[]
[]
[]
[]
[]
[]
[]
[]
[]
[]
[]
[]
[]
[]
[]
[]
[]
[]
[null,null,null,null,null,null,null,null,null,null,null,null,null,null,null,null,null,null,null,null,null,null,null,null,null,null,null,null,null,"4 de 4"]